fUSD/lending_fUSD_20241224
["ID","MTS","AMOUNT","RATE_DAILY","PERIOD"]
[346515995,1735018232229,-200.72,0.00013,2]
[346515996,1735018232239,-202.33,0.00013,2]
[346515997,1735018232248,-200.51,0.00013,2]
[346515998,1735018232257,-200.2,0.00013,2]
[346515999,1735018232266,-177.47858504,0.00013249,2]
[346516000,1735018232276,-250.0,0.00013318,2]
[346516001,1735018232285,-180.43,0.00013452,2]
[346516002,1735018232294,-1000.0,0.00013528,2]
[346516003,1735018232304,-424.32,0.00013538,2]
[346516004,1735018232313,-2075.8843464,0.00013598,2]
[346516005,1735018232322,-715.65012561,0.00013598,2]
[346516006,1735018232433,-613.77,0.00013598,2]
[346516007,1735018232444,-298.54285207,0.00013598,2]
[346516008,1735018232453,-177.47858504,0.00013598,2]
[346516009,1735018232463,-123.97856289,0.00013698,2]
[346516010,1735018232475,-410.4911649,0.00013698,2]
[346516011,1735018232484,-108.4488351,0.00013698,2]
[346516012,1735018232495,-375.839991,0.00013698,2]
[346516013,1735018232513,-18.54184646,0.00013698,2]
[346516014,1735018232523,-500.61030084,0.00013698,2]
[346516015,1735018232532,-501.96349383,0.00013698,2]
[346516016,1735018232541,-500.0,0.00013698,2]
[346516017,1735018232550,-505.1804209,0.00013698,2]
[346516018,1735018232559,-505.1012883,0.00013698,2]
[346516019,1735018232569,-500.0,0.00013698,2]
[346516020,1735018232578,-500.0,0.00013698,2]
[346516021,1735018232588,-500.61946672,0.00013698,2]
[346516022,1735018232597,-501.6599908,0.00013698,2]
[346516023,1735018232606,-500.0,0.00013698,2]
[346516024,1735018232616,-500.0,0.00013698,2]
[346516025,1735018232625,-500.58167961,0.00013698,2]
[346516026,1735018232635,-500.0,0.00013698,2]
[346516027,1735018232644,-500.0,0.00013698,2]
[346516028,1735018232653,-500.0,0.00013698,2]
[346516029,1735018232663,-500.0,0.00013698,2]
[346516030,1735018232674,-500.0,0.00013698,2]
[346516031,1735018232683,-500.0,0.00013698,2]
[346516032,1735018232693,-500.0,0.00013698,2]
[346516033,1735018232702,-500.0,0.00013698,2]
[346516034,1735018232712,-500.0,0.00013698,2]
[346516035,1735018232721,-500.0,0.00013698,2]
[346516036,1735018232731,-500.0,0.00013698,2]
[346516037,1735018232739,-500.0,0.00013698,2]
[346516038,1735018232749,-500.0,0.00013698,2]
[346516039,1735018232759,-500.0,0.00013698,2]
[346516040,1735018232768,-500.0,0.00013698,2]
[346516041,1735018232777,-500.0,0.00013698,2]
[346516042,1735018232787,-514.80900169,0.00013698,2]
[346516043,1735018232796,-500.0,0.00013698,2]
[346516044,1735018232806,-511.75863286,0.00013698,2]
[346516045,1735018232815,-474.38677782,0.00013698,2]
[346516046,1735018232825,-401.51408906,0.00013698,2]
[346516047,1735018232834,-500.0,0.00013698,2]
[346516048,1735018232843,-500.0,0.00013698,2]
[346516049,1735018232852,-500.0,0.00013698,2]
[346516050,1735018232862,-500.0,0.00013698,2]
[346516051,1735018232871,-500.0,0.00013698,2]
[346516052,1735018232880,-500.0,0.00013698,2]
[346516053,1735018232890,-322.33205658,0.00013698,2]
[346516054,1735018232900,-500.0,0.00013698,2]
[346516055,1735018232909,-500.0,0.00013698,2]
[346516056,1735018232919,-492.68224703,0.00013698,2]
[346516057,1735018232929,-506.15225702,0.00013698,2]
[346516058,1735018232938,-500.0,0.00013698,2]
[346516059,1735018232948,-505.43951118,0.00013698,2]
[346516060,1735018232957,-500.0,0.00013698,2]
[346516061,1735018232966,-500.0,0.00013698,2]
[346516062,1735018232975,-304.80416128,0.00013698,2]
[346516063,1735018232984,-500.0,0.00013698,2]
[346516064,1735018232994,-500.0,0.00013698,2]
[346516065,1735018233003,-500.0,0.00013698,2]
[346516066,1735018233012,-500.0,0.00013698,2]
[346516067,1735018233023,-500.0,0.00013698,2]
[346516068,1735018233032,-500.0,0.00013698,2]
[346516069,1735018233042,-507.31950623,0.00013698,2]
[346516071,1735018233052,-504.73021136,0.00013698,2]
[346516073,1735018233062,-509.41257846,0.00013698,2]
[346516075,1735018233071,-500.0,0.00013698,2]
[346516077,1735018233081,-500.0,0.00013698,2]
[346516079,1735018233090,-500.0,0.00013698,2]
[346516081,1735018233099,-500.0,0.00013698,2]
[346516083,1735018233109,-500.0,0.00013698,2]
[346516085,1735018233119,-546.3,0.00013698,2]
[346516087,1735018233131,-500.0,0.00013698,2]
[346516089,1735018233140,-500.0,0.00013698,2]
[346516091,1735018233149,-500.0,0.00013698,2]
[346516093,1735018233159,-658.36,0.00013698,2]
[346516095,1735018233171,-500.0,0.00013698,2]
[346516097,1735018233180,-500.0,0.00013698,2]
[346516098,1735018233191,-500.0,0.00013698,2]
[346516101,1735018233202,-500.0,0.00013698,2]
[346516103,1735018233212,-500.0,0.00013698,2]
[346516105,1735018233222,-504.92325947,0.00013698,2]
[346516107,1735018233232,-500.0,0.00013698,2]
[346516109,1735018233242,-500.0,0.00013698,2]
[346516111,1735018233252,-500.0,0.00013698,2]
[346516112,1735018233262,-500.0,0.00013698,2]
[346516114,1735018233271,-680.9,0.00013698,2]
[346516116,1735018233281,-500.0,0.00013698,2]
[346516118,1735018233291,-500.0,0.00013698,2]
[346516120,1735018233301,-500.0,0.00013698,2]
[346516122,1735018233311,-500.0,0.00013698,2]
[346516124,1735018233321,-500.0,0.00013698,2]
[346516126,1735018233331,-501.62,0.00013698,2]
[346516128,1735018233340,-500.0,0.00013698,2]
[346516130,1735018233351,-500.0,0.00013698,2]
[346516132,1735018233360,-500.0,0.00013698,2]
[346516135,1735018233370,-586.12,0.00013698,2]
[346516136,1735018233379,-500.0,0.00013698,2]
[346516138,1735018233388,-500.0,0.00013698,2]
[346516140,1735018233398,-500.0,0.00013698,2]
[346516142,1735018233408,-500.0,0.00013698,2]
[346516144,1735018233419,-500.0,0.00013698,2]
[346516146,1735018233429,-500.0,0.00013698,2]
[346516148,1735018233439,-500.0,0.00013698,2]
[346516150,1735018233448,-505.89643057,0.00013698,2]
[346516152,1735018233459,-500.0,0.00013698,2]
[346516154,1735018233469,-268.38889284,0.00013698,2]
[346516156,1735018233478,-500.0,0.00013698,2]
[346516158,1735018233488,-500.0,0.00013698,2]
[346516160,1735018233498,-500.0,0.00013698,2]
[346516162,1735018233508,-500.0,0.00013698,2]
[346516164,1735018233518,-500.71,0.00013698,2]
[346516166,1735018233527,-582.46,0.00013698,2]
[346516168,1735018233538,-505.48338417,0.00013698,2]
[346516170,1735018233547,-500.0,0.00013698,2]
[346516172,1735018233556,-500.0,0.00013698,2]
[346516174,1735018233566,-500.0,0.00013698,2]
[346516176,1735018233575,-503.35444835,0.00013698,2]
[346516178,1735018233584,-500.0,0.00013698,2]
[346516180,1735018233593,-500.0,0.00013698,2]
[346516182,1735018233603,-500.0,0.00013698,2]
[346516184,1735018233612,-500.0,0.00013698,2]
[346516186,1735018233622,-500.0,0.00013698,2]
[346516188,1735018233631,-505.04785505,0.00013698,2]
[346516190,1735018233641,-500.0,0.00013698,2]
[346516192,1735018233651,-500.0,0.00013698,2]
[346516194,1735018233660,-500.0,0.00013698,2]
[346516196,1735018233670,-584.84,0.00013698,2]
[346516198,1735018233680,-508.68398552,0.00013698,2]
[346516200,1735018233690,-502.93846071,0.00013698,2]
[346516202,1735018233700,-500.0,0.00013698,2]
[346516204,1735018233709,-500.0,0.00013698,2]
[346516206,1735018233719,-500.0,0.00013698,2]
[346516208,1735018233729,-667.98,0.00013698,2]
[346516210,1735018233739,-500.0,0.00013698,2]
[346516212,1735018233749,-500.0,0.00013698,2]
[346516214,1735018233759,-500.0,0.00013698,2]
[346516215,1735018233768,-500.0,0.00013698,2]
[346516216,1735018233778,-511.20708155,0.00013698,2]
[346516218,1735018233788,-500.0,0.00013698,2]
[346516219,1735018233798,-500.0,0.00013698,2]
[346516221,1735018233808,-500.0,0.00013698,2]
[346516222,1735018233818,-500.0,0.00013698,2]
[346516223,1735018233828,-500.0,0.00013698,2]
[346516224,1735018233838,-500.0,0.00013698,2]
[346516225,1735018233849,-500.0,0.00013698,2]
[346516226,1735018233859,-500.0,0.00013698,2]
[346516227,1735018233869,-500.0,0.00013698,2]
[346516228,1735018233879,-500.0,0.00013698,2]
[346516229,1735018233889,-500.0,0.00013698,2]
[346516230,1735018233899,-711.57,0.00013698,2]
[346516231,1735018233909,-500.0,0.00013698,2]
[346516232,1735018233922,-500.0,0.00013698,2]
[346516233,1735018233932,-192.32341585,0.00013698,2]
[346516234,1735018233943,-500.0,0.00013698,2]
[346516235,1735018233953,-500.0,0.00013698,2]
[346516236,1735018233962,-503.512849,0.00013698,2]
[346516237,1735018233972,-500.0,0.00013698,2]
[346516238,1735018233981,-500.0,0.00013698,2]
[346516239,1735018233991,-897.7,0.00013698,2]
[346516240,1735018234001,-500.0,0.00013698,2]
[346516241,1735018234011,-500.0,0.00013698,2]
[346516242,1735018234021,-500.0,0.00013698,2]
[346516243,1735018234032,-500.0,0.00013698,2]
[346516244,1735018234041,-519.5,0.00013698,2]
[346516245,1735018234051,-519.5,0.00013698,2]
[346516246,1735018234061,-519.5,0.00013698,2]
[346516247,1735018234070,-519.5,0.00013698,2]
[346516248,1735018234079,-519.5,0.00013698,2]
[346516249,1735018234089,-519.5,0.00013698,2]
[346516250,1735018234099,-519.5,0.00013698,2]
[346516251,1735018234108,-500.0,0.00013698,2]
[346516252,1735018234118,-519.5,0.00013698,2]
[346516253,1735018234128,-519.5,0.00013698,2]
[346516254,1735018234137,-519.5,0.00013698,2]
[346516255,1735018234148,-519.5,0.00013698,2]
[346516256,1735018234159,-519.5,0.00013698,2]
[346516257,1735018234174,-519.5,0.00013698,2]
[346516258,1735018234185,-519.5,0.00013698,2]
[346516259,1735018234197,-519.5,0.00013698,2]
[346516260,1735018234208,-519.5,0.00013698,2]
[346516261,1735018234219,-519.5,0.00013698,2]
[346516262,1735018234231,-519.5,0.00013698,2]
[346516263,1735018234243,-519.5,0.00013698,2]
[346516264,1735018234254,-519.5,0.00013698,2]
[346516265,1735018234265,-519.5,0.00013698,2]
[346516266,1735018234276,-519.5,0.00013698,2]
[346516267,1735018234287,-519.5,0.00013698,2]
[346516268,1735018234299,-519.67033082,0.00013698,2]
[346516269,1735018234310,-500.0,0.00013698,2]
[346516270,1735018234321,-500.0,0.00013698,2]
[346516271,1735018234332,-500.0,0.00013698,2]
[346516272,1735018234343,-500.0,0.00013698,2]
[346516273,1735018234354,-500.0,0.00013698,2]
[346516274,1735018234364,-500.0,0.00013698,2]
[346516275,1735018234375,-500.0,0.00013698,2]
[346516276,1735018234386,-560.63,0.00013698,2]
[346516277,1735018234397,-668.01,0.00013698,2]
[346516278,1735018234407,-500.0,0.00013698,2]
[346516279,1735018234424,-500.0,0.00013698,2]
[346516280,1735018234435,-500.0,0.00013698,2]
[346516281,1735018234445,-557.47,0.00013698,2]
[346516282,1735018234455,-500.0,0.00013698,2]
[346516283,1735018234467,-500.0,0.00013698,2]
[346516284,1735018234478,-500.0,0.00013698,2]
[346516285,1735018234489,-500.0,0.00013698,2]
[346516286,1735018234500,-383.597552,0.00013698,2]
[346516287,1735018234511,-500.0,0.00013698,2]
[346516288,1735018234522,-500.0,0.00013698,2]
[346516289,1735018234533,-500.0,0.00013698,2]
[346516290,1735018234545,-510.28744697,0.00013698,2]
[346516291,1735018234556,-500.0,0.00013698,2]
[346516292,1735018234566,-500.0,0.00013698,2]
[346516293,1735018234577,-555.168296,0.00013698,2]
[346516294,1735018234588,-500.0,0.00013698,2]
[346516295,1735018234598,-500.0,0.00013698,2]
[346516296,1735018234608,-500.0,0.00013698,2]
[346516297,1735018234619,-500.0,0.00013698,2]
[346516298,1735018234630,-500.0,0.00013698,2]
[346516299,1735018234640,-500.0,0.00013698,2]
[346516300,1735018234651,-500.0,0.00013698,2]
[346516301,1735018234661,-500.0,0.00013698,2]
[346516302,1735018234675,-500.0,0.00013698,2]
[346516303,1735018234686,-500.0,0.00013698,2]
[346516304,1735018234696,-946.68,0.00013698,2]
[346516305,1735018234706,-500.0,0.00013698,2]
[346516306,1735018234717,-500.0,0.00013698,2]
[346516307,1735018234727,-595.41143309,0.00013698,2]
[346516308,1735018234736,-500.0,0.00013698,2]
[346516309,1735018234747,-500.0,0.00013698,2]
[346516310,1735018234756,-500.0,0.00013698,2]
[346516311,1735018234766,-504.30795559,0.00013698,2]
[346516312,1735018234776,-500.0,0.00013698,2]
[346516313,1735018234786,-497.20199775,0.00013698,2]
[346516314,1735018234795,-500.0,0.00013698,2]
[346516315,1735018234805,-500.0,0.00013698,2]
[346516316,1735018234814,-502.45198093,0.00013698,2]
[346516317,1735018234823,-500.0,0.00013698,2]
[346516318,1735018234832,-592.9,0.00013698,2]
[346516319,1735018234842,-502.9834599,0.00013698,2]
[346516320,1735018234851,-500.0,0.00013698,2]
[346516321,1735018234860,-547.28,0.00013698,2]
[346516322,1735018234869,-500.0,0.00013698,2]
[346516323,1735018234878,-500.0,0.00013698,2]
[346516324,1735018234888,-598.2,0.00013698,2]
[346516325,1735018234897,-500.0,0.00013698,2]
[346516326,1735018234907,-520.01,0.00013698,2]
[346516327,1735018234916,-500.0,0.00013698,2]
[346516328,1735018234928,-506.66,0.00013698,2]
[346516329,1735018234937,-500.0,0.00013698,2]
[346516330,1735018234947,-501.14023364,0.00013698,2]
[346516331,1735018234956,-170.89904147,0.00013698,2]
[346516332,1735018234965,-500.0,0.00013698,2]
[346516333,1735018234975,-500.0,0.00013698,2]
[346516334,1735018234984,-500.0,0.00013698,2]
[346516335,1735018234993,-662.17,0.00013698,2]
[346516336,1735018235002,-500.0,0.00013698,2]
[346516337,1735018235012,-500.0,0.00013698,2]
[346516338,1735018235022,-500.0,0.00013698,2]
[346516339,1735018235031,-500.0,0.00013698,2]
[346516340,1735018235041,-501.78719547,0.00013698,2]
[346516341,1735018235051,-500.0,0.00013698,2]
[346516342,1735018235061,-500.0,0.00013698,2]
[346516343,1735018235071,-500.0,0.00013698,2]
[346516344,1735018235081,-500.0,0.00013698,2]
[346516345,1735018235091,-183.15536267,0.00013698,2]
[346516346,1735018235102,-696.48,0.00013698,2]
[346516347,1735018235112,-266.41569894,0.00013698,2]
[346516348,1735018235123,-500.0,0.00013698,2]
[346516349,1735018235136,-518.6,0.00013698,2]
[346516350,1735018235147,-500.0,0.00013698,2]
[346516351,1735018235157,-500.0,0.00013698,2]
[346516352,1735018235172,-1152.77,0.00013698,2]
[346516353,1735018235182,-500.0,0.00013698,2]
[346516354,1735018235193,-500.0,0.00013698,2]
[346516355,1735018235203,-500.0,0.00013698,2]
[346516356,1735018235214,-500.0,0.00013698,2]
[346516357,1735018235224,-501.64188659,0.00013698,2]
[346516358,1735018235235,-500.0,0.00013698,2]
[346516359,1735018235246,-504.58111223,0.00013698,2]
[346516360,1735018235259,-500.0,0.00013698,2]
[346516361,1735018235270,-586.32,0.00013698,2]
[346516362,1735018235280,-500.0,0.00013698,2]
[346516363,1735018235290,-725.31,0.00013698,2]
[346516364,1735018235301,-500.0,0.00013698,2]
[346516365,1735018235311,-846.78,0.00013698,2]
[346516366,1735018235321,-500.0,0.00013698,2]
[346516367,1735018235332,-500.0,0.00013698,2]
[346516368,1735018235343,-500.0,0.00013698,2]
[346516369,1735018235354,-503.1610067,0.00013698,2]
[346516370,1735018235366,-500.0,0.00013698,2]
[346516371,1735018235377,-547.95,0.00013698,2]
[346516372,1735018235388,-500.0,0.00013698,2]
[346516373,1735018235399,-500.0,0.00013698,2]
[346516374,1735018235409,-713.44,0.00013698,2]
[346516375,1735018235423,-796.84,0.00013698,2]
[346516376,1735018235433,-523.75,0.00013698,2]
[346516377,1735018235444,-500.0,0.00013698,2]
[346516378,1735018235455,-500.0,0.00013698,2]
[346516379,1735018235466,-500.0,0.00013698,2]
[346516380,1735018235476,-500.0,0.00013698,2]
[346516381,1735018235486,-500.0,0.00013698,2]
[346516382,1735018235496,-500.0,0.00013698,2]
[346516383,1735018235506,-500.0,0.00013698,2]
[346516384,1735018235516,-500.0,0.00013698,2]
[346516385,1735018235525,-500.0,0.00013698,2]
[346516386,1735018235535,-500.0,0.00013698,2]
[346516387,1735018235548,-500.0,0.00013698,2]
[346516388,1735018235560,-5016.22,0.00013698,2]
[346516389,1735018235572,-1638.06,0.00013698,2]
[346516390,1735018235584,-500.0,0.00013698,2]
[346516391,1735018235596,-551.44,0.00013698,2]
[346516392,1735018235607,-500.0,0.00013698,2]
[346516393,1735018235617,-1164.78,0.00013698,2]
[346516394,1735018235628,-500.0,0.00013698,2]
[346516395,1735018235638,-500.0,0.00013698,2]
[346516396,1735018235650,-500.0,0.00013698,2]
[346516397,1735018235662,-501.39898343,0.00013698,2]
[346516398,1735018235677,-500.0,0.00013698,2]
[346516399,1735018235688,-782.49,0.00013698,2]
[346516400,1735018235701,-1583.85,0.00013698,2]
[346516401,1735018235713,-500.0,0.00013698,2]
[346516402,1735018235726,-500.0,0.00013698,2]
[346516403,1735018235738,-901.71,0.00013698,2]
[346516404,1735018235748,-500.0,0.00013698,2]
[346516405,1735018235760,-1977.81,0.00013698,2]
[346516406,1735018235772,-500.0,0.00013698,2]
[346516407,1735018235783,-509.19,0.00013698,2]
[346516408,1735018235794,-500.0,0.00013698,2]
[346516409,1735018235805,-500.0,0.00013698,2]
[346516410,1735018235815,-500.0,0.00013698,2]
[346516411,1735018235825,-500.0,0.00013698,2]
[346516412,1735018235836,-500.0,0.00013698,2]
[346516413,1735018235848,-500.0,0.00013698,2]
[346516414,1735018235859,-792.79,0.00013698,2]
[346516415,1735018235870,-849.68,0.00013698,2]
[346516416,1735018235881,-2088.9,0.00013698,2]
[346516417,1735018235892,-500.0,0.00013698,2]
[346516418,1735018235904,-500.0,0.00013698,2]
[346516419,1735018235915,-254.80693651,0.00013698,2]
[346516420,1735018236388,-769.09711996,0.00013698,2]
[346516421,1735018236400,-805.27980789,0.00013698,2]
[346516422,1735018236420,-226.69613564,0.00013698,2]
[346516423,1735018236430,-44.80386436,0.00013698,2]
[346516424,1735018236443,-7155.97072644,0.00013698,2]
[346516427,1735018237965,-476.2654092,0.00013698,2]
[346516428,1735018237975,-500.0,0.00013698,2]
[346516429,1735018237986,-543.48,0.00013698,2]
[346516430,1735018237996,-500.0,0.00013698,2]
[346516431,1735018238007,-854.97,0.00013698,2]
[346516432,1735018238017,-268.12355727,0.00013698,2]
[346516433,1735018238027,-1395.53,0.00013698,2]
[346516434,1735018238038,-500.0,0.00013698,2]
[346516435,1735018238048,-500.0,0.00013698,2]
[346516436,1735018238058,-500.0,0.00013698,2]
[346516437,1735018238067,-1385.02,0.00013698,2]
[346516438,1735018238077,-500.0,0.00013698,2]
[346516439,1735018238087,-3679.71,0.00013698,2]
[346516440,1735018238097,-500.0,0.00013698,2]
[346516441,1735018238107,-1080.57,0.00013698,2]
[346516442,1735018238117,-500.0,0.00013698,2]
[346516443,1735018238127,-1694.03,0.00013698,2]
[346516444,1735018238137,-500.0,0.00013698,2]
[346516445,1735018238147,-500.0,0.00013698,2]
[346516446,1735018238157,-505.35,0.00013698,2]
[346516447,1735018238167,-1117.85,0.00013698,2]
[346516448,1735018238179,-705.9,0.00013698,2]
[346516449,1735018238189,-494.11231477,0.00013698,2]
[346516450,1735018238200,-500.0,0.00013698,2]
[346516451,1735018238210,-1539.8,0.00013698,2]
[346516452,1735018238220,-508.92818627,0.00013698,2]
[346516453,1735018238230,-500.0,0.00013698,2]
[346516454,1735018238240,-500.0,0.00013698,2]
[346516455,1735018238250,-2249.94,0.00013698,2]
[346516456,1735018238260,-500.0,0.00013698,2]
[346516457,1735018238270,-500.0,0.00013698,2]
[346516458,1735018238280,-500.0,0.00013698,2]
[346516459,1735018238290,-3833.98,0.00013698,2]
[346516460,1735018238300,-500.0,0.00013698,2]
[346516461,1735018238310,-500.0,0.00013698,2]
[346516462,1735018238320,-500.0,0.00013698,2]
[346516463,1735018238330,-937.66,0.00013698,2]
[346516464,1735018238341,-500.0,0.00013698,2]
[346516465,1735018238351,-500.0,0.00013698,2]
[346516466,1735018238361,-500.0,0.00013698,2]
[346516467,1735018238371,-2551.89,0.00013698,2]
[346516468,1735018238381,-586.98,0.00013698,2]
[346516469,1735018238391,-1335.36,0.00013698,2]
[346516470,1735018238401,-500.0,0.00013698,2]
[346516471,1735018238411,-3168.41,0.00013698,2]
[346516472,1735018238422,-500.0,0.00013698,2]
[346516473,1735018238432,-1369.41,0.00013698,2]
[346516474,1735018238442,-500.0,0.00013698,2]
[346516475,1735018238452,-575.13,0.00013698,2]
[346516476,1735018238462,-845.43,0.00013698,2]
[346516477,1735018238472,-500.0,0.00013698,2]
[346516478,1735018238482,-500.0,0.00013698,2]
[346516479,1735018238492,-887.19,0.00013698,2]
[346516480,1735018238502,-500.0,0.00013698,2]
[346516481,1735018238512,-547.48,0.00013698,2]
[346516482,1735018238522,-500.0,0.00013698,2]
[346516483,1735018238532,-716.51,0.00013698,2]
[346516484,1735018238542,-500.0,0.00013698,2]
[346516485,1735018238552,-561.45,0.00013698,2]
[346516486,1735018238562,-500.0,0.00013698,2]
[346516487,1735018238572,-500.0,0.00013698,2]
[346516488,1735018238582,-558.02,0.00013698,2]
[346516489,1735018238592,-500.0,0.00013698,2]
[346516490,1735018238602,-500.0,0.00013698,2]
[346516491,1735018238612,-1000.0,0.00013698,2]
[346516492,1735018238622,-500.0,0.00013698,2]
[346516493,1735018238632,-500.0,0.00013698,2]
[346516495,1735018238642,-973.2,0.00013698,2]
[346516497,1735018238652,-500.0,0.00013698,2]
[346516499,1735018238663,-3656.76,0.00013698,2]
[346516501,1735018238674,-997.53,0.00013698,2]
[346516503,1735018238684,-503.21993389,0.00013698,2]
[346516505,1735018238695,-500.0,0.00013698,2]
[346516507,1735018238704,-855.77,0.00013698,2]
[346516509,1735018238715,-693.49,0.00013698,2]
[346516511,1735018238724,-500.0,0.00013698,2]
[346516514,1735018238734,-500.0,0.00013698,2]
[346516516,1735018238744,-500.0,0.00013698,2]
[346516518,1735018238754,-500.0,0.00013698,2]
[346516520,1735018238764,-167.60136028,0.00013698,2]
[346516522,1735018238775,-637.35,0.00013698,2]
[346516524,1735018238785,-500.0,0.00013698,2]
[346516526,1735018238794,-1739.36,0.00013698,2]
[346516528,1735018238804,-500.0,0.00013698,2]
[346516530,1735018238814,-500.0,0.00013698,2]
[346516532,1735018238824,-500.0,0.00013698,2]
[346516534,1735018238834,-503.57952813,0.00013698,2]
[346516536,1735018238844,-705.36,0.00013698,2]
[346516538,1735018238854,-503.51547862,0.00013698,2]
[346516540,1735018238864,-500.0,0.00013698,2]
[346516542,1735018238874,-500.0,0.00013698,2]
[346516545,1735018238885,-503.10243407,0.00013698,2]
[346516547,1735018238895,-500.0,0.00013698,2]
[346516549,1735018238905,-1543.65,0.00013698,2]
[346516551,1735018238915,-500.0,0.00013698,2]
[346516553,1735018238926,-820.97,0.00013698,2]
[346516555,1735018238936,-505.37855852,0.00013698,2]
[346516557,1735018238945,-503.53156163,0.00013698,2]
[346516559,1735018238955,-1819.38,0.00013698,2]
[346516561,1735018238965,-500.0,0.00013698,2]
[346516563,1735018238975,-516.02167666,0.00013698,2]
[346516565,1735018238985,-722.75,0.00013698,2]
[346516567,1735018238995,-500.0,0.00013698,2]
[346516569,1735018239005,-4120.74,0.00013698,2]
[346516570,1735018239015,-910.57,0.00013698,2]
[346516571,1735018239024,-989.44,0.00013698,2]
[346516572,1735018239034,-500.0,0.00013698,2]
[346516573,1735018239043,-500.0,0.00013698,2]
[346516574,1735018239053,-2961.05,0.00013698,2]
[346516575,1735018239062,-500.0,0.00013698,2]
[346516576,1735018239071,-519.42662783,0.00013698,2]
[346516577,1735018239081,-503.58,0.00013698,2]
[346516578,1735018239091,-500.0,0.00013698,2]
[346516579,1735018239101,-903.8,0.00013698,2]
[346516580,1735018239110,-596.96,0.00013698,2]
[346516581,1735018239120,-807.94,0.00013698,2]
[346516582,1735018239130,-1456.76,0.00013698,2]
[346516631,1735018239655,-2643.91,0.00013698,2]
[346516632,1735018239673,-500.0,0.00013698,2]
[346516633,1735018239690,-1308.53,0.00013698,2]
[346516634,1735018239699,-500.0,0.00013698,2]
[346516635,1735018239709,-794.16,0.00013698,2]
[346516636,1735018239718,-212.11509263,0.00013698,2]
[346516637,1735018239727,-1213.29,0.00013698,2]
[346516638,1735018239737,-500.0,0.00013698,2]
[346516639,1735018239747,-1676.79,0.00013698,2]
[346516640,1735018239756,-500.0,0.00013698,2]
[346516641,1735018239765,-500.0,0.00013698,2]
[346516642,1735018239774,-500.0,0.00013698,2]
[346516643,1735018239783,-5281.26,0.00013698,2]
[346516644,1735018239792,-500.0,0.00013698,2]
[346516645,1735018239801,-1433.69,0.00013698,2]
[346516646,1735018239810,-500.0,0.00013698,2]
[346516647,1735018239819,-500.0,0.00013698,2]
[346516648,1735018239828,-677.19,0.00013698,2]
[346516649,1735018239837,-500.0,0.00013698,2]
[346516650,1735018239846,-500.0,0.00013698,2]
[346516651,1735018239855,-1372.29,0.00013698,2]
[346516652,1735018239864,-1023.69,0.00013698,2]
[346516653,1735018239874,-500.0,0.00013698,2]
[346516655,1735018239883,-680.17,0.00013698,2]
[346516656,1735018239893,-552.15,0.00013698,2]
[346516657,1735018239902,-705.72,0.00013698,2]
[346516658,1735018239911,-410.68442086,0.00013698,2]